fUSD/lending_fUSD_20250126
["ID","MTS","AMOUNT","RATE_DAILY","PERIOD"]
[350456892,1737893432688,-2236.92088886,0.0001095,2]
[350456894,1737893432698,-995.47896015,0.0001095,2]
[350456895,1737893432709,-1256.60820089,0.0001095,2]
[350456896,1737893432720,-1673.15,0.0001095,2]
[350456906,1737893437891,-1107.0,0.00010947,2]
[350456907,1737893437901,-7040.05568152,0.0001095,2]
[350456908,1737893437912,-3868.33183476,0.0001095,2]
[350456909,1737893437958,-52696.240716,0.0001095,2]
[350456910,1737893437970,-15302.29935771,0.0001095,2]
[350456911,1737893438169,-7113.22906301,0.0001095,2]
[350456912,1737893438221,-15372.16224774,0.0001095,2]
[350456913,1737893440098,-4463.15286867,0.0001095,2]
[350456914,1737893440360,-1204.51437272,0.0001095,2]
[350456915,1737893440375,-489.9559545,0.0001095,2]
[350456916,1737893440414,-82585.80460085,0.0001095,2]
[350456917,1737893440427,-507.48070421,0.0001095,2]
[350457211,1737893443182,-817.1986,0.0001095,2]
[350457212,1737893443194,-5568.91770544,0.0001095,2]
[350457214,1737893443236,-1287.54999995,0.0001095,2]
[350457216,1737893443248,-14073.7776466,0.0001095,2]
[350457222,1737893443294,-18228.64727885,0.0001095,2]
[350457224,1737893443304,-403.764,0.00010957,2]
[350457227,1737893443313,-500.0,0.00010957,2]
[350457230,1737893443322,-157.110794,0.00010958,2]
[350457232,1737893443331,-157.110794,0.00010958,2]
[350457235,1737893443341,-157.110794,0.00010958,2]
[350457238,1737893443351,-157.110794,0.00010958,2]
[350457240,1737893443361,-157.110794,0.00010958,2]
[350457242,1737893443370,-157.110794,0.00010958,2]
[350457244,1737893443380,-166.38561,0.00010958,2]
[350457246,1737893443389,-166.38561,0.00010958,2]
[350457248,1737893443398,-166.38561,0.00010958,2]
[350457250,1737893443407,-166.38561,0.00010958,2]
[350457252,1737893443416,-166.38561,0.00010958,2]
[350457254,1737893443425,-166.38561,0.00010958,2]
[350457256,1737893443434,-166.38561,0.00010958,2]
[350457258,1737893443443,-166.38561,0.00010958,2]
[350457260,1737893443453,-500.0,0.00010958,2]
[350457262,1737893443462,-500.0,0.00010958,2]
[350457264,1737893443471,-500.0,0.00010958,2]
[350457266,1737893443480,-602.15,0.00010958,2]
[350457268,1737893443489,-500.0,0.00010958,2]
[350457270,1737893443499,-500.0,0.00010958,2]
[350457272,1737893443512,-500.0,0.00010958,2]
[350457274,1737893443521,-500.0,0.00010958,2]
[350457307,1737893443725,-500.0,0.00010958,2]
[350457310,1737893443735,-500.0,0.00010958,2]
[350457313,1737893443744,-500.0,0.00010958,2]
[350457315,1737893443753,-234.59312817,0.00010958,2]
[350457317,1737893443763,-500.0,0.00010958,2]
[350457319,1737893443772,-500.0,0.00010958,2]
[350457321,1737893443782,-500.0,0.00010958,2]
[350457323,1737893443791,-500.0,0.00010958,2]
[350457325,1737893443800,-500.0,0.00010958,2]
[350457327,1737893443810,-500.0,0.00010958,2]
[350457329,1737893443819,-500.0,0.00010958,2]
[350457331,1737893443828,-325.98163605,0.00010958,2]
[350457333,1737893443838,-232.69361128,0.00010958,2]
[350457335,1737893443848,-500.0,0.00010958,2]
[350457337,1737893443857,-500.0,0.00010958,2]
[350457339,1737893443867,-500.0,0.00010958,2]
[350457341,1737893443877,-500.0,0.00010958,2]
[350457343,1737893443886,-500.0,0.00010958,2]
[350457345,1737893443896,-528.10086166,0.00010958,2]
[350457346,1737893443906,-500.0,0.00010958,2]
[350457347,1737893443916,-500.0,0.00010958,2]
[350457349,1737893443926,-500.0,0.00010958,2]
[350457350,1737893443935,-315.97151248,0.00010958,2]
[350457351,1737893443944,-500.0,0.00010958,2]
[350457352,1737893443953,-500.0,0.00010958,2]
[350457353,1737893443962,-250.49,0.00010958,2]
[350457354,1737893443972,-500.0,0.00010958,2]
[350457355,1737893443982,-500.0,0.00010958,2]
[350457356,1737893443991,-500.0,0.00010958,2]
[350457357,1737893443999,-500.0,0.00010958,2]
[350457358,1737893444009,-500.0,0.00010958,2]
[350457359,1737893444018,-329.65326661,0.00010958,2]
[350457360,1737893444049,-170.34673339,0.00010958,2]
[350457361,1737893444058,-500.0,0.00010958,2]
[350457363,1737893444068,-634.72256901,0.00010958,2]
[350457364,1737893444077,-183.63,0.00010958,2]
[350457366,1737893444086,-500.0,0.00010958,2]
[350457368,1737893444096,-504.21299395,0.00010958,2]
[350457370,1737893444106,-506.45,0.00010958,2]
[350457372,1737893444117,-289.42440183,0.00010958,2]
[350457374,1737893444126,-500.0,0.00010958,2]
[350457376,1737893444135,-571.53,0.00010958,2]
[350457378,1737893444144,-500.0,0.00010958,2]
[350457380,1737893444153,-510.06677776,0.00010958,2]
[350457382,1737893444163,-500.0,0.00010958,2]
[350457384,1737893444172,-500.0,0.00010958,2]
[350457386,1737893444181,-500.0,0.00010958,2]
[350457388,1737893444190,-500.0,0.00010958,2]
[350457390,1737893444200,-500.0,0.00010958,2]
[350457393,1737893444212,-473.55882306,0.00010958,2]
[350457395,1737893444221,-500.0,0.00010958,2]
[350457397,1737893444230,-500.0,0.00010958,2]
[350457399,1737893444239,-500.0,0.00010958,2]
[350457400,1737893444249,-598.31281306,0.00010958,2]
[350457402,1737893444258,-500.0,0.00010958,2]
[350457404,1737893444268,-500.0,0.00010958,2]
[350457406,1737893444278,-500.0,0.00010958,2]
[350457408,1737893444287,-500.0,0.00010958,2]
[350457410,1737893444296,-500.0,0.00010958,2]
[350457412,1737893444306,-373.14488708,0.00010958,2]
[350457415,1737893444323,-126.85511292,0.00010958,2]
[350457417,1737893444332,-500.0,0.00010958,2]
[350457419,1737893444342,-301.22,0.00010958,2]
[350457421,1737893444351,-500.0,0.00010958,2]
[350457423,1737893444361,-375.25093147,0.00010958,2]
[350457425,1737893444371,-500.0,0.00010958,2]
[350457427,1737893444381,-500.0,0.00010958,2]
[350457429,1737893444390,-361.94034028,0.00010958,2]
[350457431,1737893444399,-500.0,0.00010958,2]
[350457432,1737893444408,-500.0,0.00010958,2]
[350457434,1737893444417,-500.0,0.00010958,2]
[350457436,1737893444426,-500.0,0.00010958,2]
[350457438,1737893444436,-198.27,0.00010958,2]
[350457440,1737893444445,-500.0,0.00010958,2]
[350457442,1737893444454,-500.0,0.00010958,2]
[350457444,1737893444463,-519.65961843,0.00010958,2]
[350457446,1737893444473,-503.91027521,0.00010958,2]
[350457448,1737893444481,-54.29372169,0.00010958,2]
[350457451,1737893444496,-509.47627831,0.00010958,2]
[350457453,1737893444508,-500.0,0.00010958,2]
[350457455,1737893444517,-335.9,0.00010958,2]
[350457456,1737893444526,-366.7937217,0.00010958,2]
[350457460,1737893444547,-133.2062783,0.00010958,2]
[350457461,1737893444556,-500.0,0.00010958,2]
[350457463,1737893444565,-500.0,0.00010958,2]
[350457465,1737893444576,-500.0,0.00010958,2]
[350457467,1737893444587,-500.0,0.00010958,2]
[350457469,1737893444596,-500.0,0.00010958,2]
[350457471,1737893444606,-500.0,0.00010958,2]
[350457473,1737893444617,-300.6137217,0.00010958,2]
[350457493,1737893445997,-199.3862783,0.00010958,2]
[350457494,1737893446007,-500.0,0.00010958,2]
[350457495,1737893446016,-500.0,0.00010958,2]
[350457496,1737893446026,-500.0,0.00010958,2]
[350457497,1737893446036,-500.0,0.00010958,2]
[350457498,1737893446045,-458.31,0.00010958,2]
[350457499,1737893446055,-500.0,0.00010958,2]
[350457500,1737893446064,-500.0,0.00010958,2]
[350457501,1737893446074,-500.0,0.00010958,2]
[350457502,1737893446083,-500.0,0.00010958,2]
[350457503,1737893446092,-500.0,0.00010958,2]
[350457504,1737893446103,-500.0,0.00010958,2]
[350457505,1737893446112,-504.79075375,0.00010958,2]
[350457506,1737893446123,-500.0,0.00010958,2]
[350457507,1737893446133,-500.0,0.00010958,2]
[350457508,1737893446142,-500.0,0.00010958,2]
[350457509,1737893446152,-500.0,0.00010958,2]
[350457510,1737893446163,-500.0,0.00010958,2]
[350457511,1737893446172,-500.0,0.00010958,2]
[350457512,1737893446182,-500.0,0.00010958,2]
[350457513,1737893446191,-500.0,0.00010958,2]
[350457514,1737893446201,-500.0,0.00010958,2]
[350457515,1737893446210,-500.0,0.00010958,2]
[350457516,1737893446220,-500.0,0.00010958,2]
[350457517,1737893446229,-500.0,0.00010958,2]
[350457518,1737893446238,-500.0,0.00010958,2]
[350457519,1737893446247,-500.0,0.00010958,2]
[350457520,1737893446257,-500.0,0.00010958,2]
[350457521,1737893446267,-500.0,0.00010958,2]
[350457522,1737893446276,-500.0,0.00010958,2]
[350457523,1737893446285,-500.0,0.00010958,2]
[350457524,1737893446295,-500.0,0.00010958,2]
[350457525,1737893446304,-500.0,0.00010958,2]
[350457526,1737893446313,-500.0,0.00010958,2]
[350457527,1737893446323,-583.29,0.00010958,2]
[350457528,1737893446332,-500.0,0.00010958,2]
[350457529,1737893446342,-500.0,0.00010958,2]
[350457530,1737893446351,-500.0,0.00010958,2]
[350457531,1737893446360,-500.0,0.00010958,2]
[350457532,1737893446372,-500.0,0.00010958,2]
[350457533,1737893446381,-427.12,0.00010958,2]
[350457534,1737893446392,-330.46236226,0.00010958,2]
[350457535,1737893446403,-500.0,0.00010958,2]
[350457536,1737893446414,-500.0,0.00010958,2]
[350457537,1737893446424,-91.09460569,0.00010958,2]
[350457540,1737893446444,-408.90539431,0.00010958,2]
[350457542,1737893446454,-500.0,0.00010958,2]
[350457544,1737893446464,-208.38571402,0.00010958,2]
[350457545,1737893446473,-623.15,0.00010958,2]
[350457547,1737893446483,-500.0,0.00010958,2]
[350457550,1737893446493,-500.0,0.00010958,2]
[350457552,1737893446512,-500.0,0.00010958,2]
[350457554,1737893446522,-277.66,0.00010958,2]
[350457555,1737893446532,-500.0,0.00010958,2]
[350457557,1737893446542,-500.0,0.00010958,2]
[350457559,1737893446553,-500.0,0.00010958,2]
[350457561,1737893446562,-500.0,0.00010958,2]
[350457563,1737893446572,-500.0,0.00010958,2]
[350457564,1737893446586,-500.0,0.00010958,2]
[350457565,1737893446597,-520.19605479,0.00010958,2]
[350457566,1737893446607,-500.0,0.00010958,2]
[350457567,1737893446617,-500.0,0.00010958,2]
[350457568,1737893446627,-500.0,0.00010958,2]
[350457569,1737893446637,-500.0,0.00010958,2]
[350457570,1737893446646,-500.0,0.00010958,2]
[350457571,1737893446656,-245.3,0.00010958,2]
[350457572,1737893446665,-500.0,0.00010958,2]
[350457573,1737893446675,-500.0,0.00010958,2]
[350457574,1737893446685,-500.0,0.00010958,2]
[350457575,1737893446694,-500.0,0.00010958,2]
[350457576,1737893446706,-224.15,0.00010958,2]
[350457577,1737893446716,-500.0,0.00010958,2]
[350457578,1737893446725,-500.0,0.00010958,2]
[350457579,1737893446735,-282.76,0.00010958,2]
[350457580,1737893446745,-500.0,0.00010958,2]
[350457581,1737893446755,-500.0,0.00010958,2]
[350457582,1737893446765,-500.0,0.00010958,2]
[350457583,1737893446775,-500.0,0.00010958,2]
[350457584,1737893446784,-500.0,0.00010958,2]
[350457585,1737893446794,-500.0,0.00010958,2]
[350457586,1737893446804,-512.82377305,0.00010958,2]
[350457587,1737893446814,-500.0,0.00010958,2]
[350457588,1737893446824,-150.0,0.00010958,2]
[350457589,1737893446833,-500.0,0.00010958,2]
[350457590,1737893446843,-500.0,0.00010958,2]
[350457591,1737893446852,-500.0,0.00010958,2]
[350457592,1737893446862,-500.0,0.00010958,2]
[350457593,1737893446875,-500.0,0.00010958,2]
[350457594,1737893446885,-500.0,0.00010958,2]
[350457595,1737893446895,-500.0,0.00010958,2]
[350457596,1737893446905,-500.0,0.00010958,2]
[350457597,1737893446914,-500.0,0.00010958,2]
[350457598,1737893446924,-500.0,0.00010958,2]
[350457599,1737893446934,-500.0,0.00010958,2]
[350457600,1737893446944,-320.78,0.00010958,2]
[350457601,1737893446954,-500.0,0.00010958,2]
[350457602,1737893446964,-500.0,0.00010958,2]
[350457603,1737893446974,-500.0,0.00010958,2]
[350457604,1737893446984,-417.64,0.00010958,2]
[350457605,1737893446994,-500.0,0.00010958,2]
[350457606,1737893447005,-500.0,0.00010958,2]
[350457607,1737893447014,-516.37,0.00010958,2]
[350457608,1737893447023,-500.0,0.00010958,2]
[350457609,1737893447033,-500.0,0.00010958,2]
[350457610,1737893447044,-509.69885634,0.00010958,2]
[350457611,1737893447054,-500.0,0.00010958,2]
[350457612,1737893447064,-500.0,0.00010958,2]
[350457613,1737893447074,-500.0,0.00010958,2]
[350457614,1737893447085,-240.62,0.00010958,2]
[350457615,1737893447094,-500.0,0.00010958,2]
[350457616,1737893447104,-500.0,0.00010958,2]
[350457617,1737893447114,-500.0,0.00010958,2]
[350457618,1737893447124,-500.0,0.00010958,2]
[350457619,1737893447134,-645.57,0.00010958,2]
[350457620,1737893447143,-500.0,0.00010958,2]
[350457621,1737893447153,-188.48,0.00010958,2]
[350457622,1737893447163,-500.0,0.00010958,2]
[350457623,1737893447172,-500.0,0.00010958,2]
[350457624,1737893447182,-500.0,0.00010958,2]
[350457625,1737893447192,-500.0,0.00010958,2]
[350457626,1737893447201,-270.63,0.00010958,2]
[350457627,1737893447211,-500.0,0.00010958,2]
[350457628,1737893447220,-500.0,0.00010958,2]
[350457629,1737893447229,-338.16,0.00010958,2]
[350457630,1737893447239,-500.0,0.00010958,2]
[350457631,1737893447248,-500.0,0.00010958,2]
[350457632,1737893447258,-500.0,0.00010958,2]
[350457633,1737893447267,-500.0,0.00010958,2]
[350457634,1737893447277,-619.37850632,0.00010958,2]
[350457635,1737893447287,-500.0,0.00010958,2]
[350457636,1737893447296,-500.0,0.00010958,2]
[350457637,1737893447305,-500.0,0.00010958,2]
[350457638,1737893447314,-500.0,0.00010958,2]
[350457639,1737893447323,-500.0,0.00010958,2]
[350457640,1737893447333,-500.0,0.00010958,2]
[350457641,1737893447342,-215.05449811,0.00010958,2]
[350457642,1737893447352,-500.0,0.00010958,2]
[350457643,1737893447361,-500.0,0.00010958,2]
[350457644,1737893447376,-500.0,0.00010958,2]
[350457645,1737893447387,-500.0,0.00010958,2]
[350457646,1737893447398,-605.96,0.00010958,2]
[350457647,1737893447408,-500.0,0.00010958,2]
[350457648,1737893447418,-500.0,0.00010958,2]
[350457649,1737893447427,-500.0,0.00010958,2]
[350457650,1737893447437,-500.0,0.00010958,2]
[350457651,1737893447447,-500.0,0.00010958,2]
[350457652,1737893447458,-500.0,0.00010958,2]
[350457653,1737893447466,-596.46512503,0.00010958,2]
[350457654,1737893447476,-500.0,0.00010958,2]
[350457655,1737893447486,-500.0,0.00010958,2]
[350457656,1737893447496,-500.0,0.00010958,2]
[350457657,1737893447510,-500.0,0.00010958,2]
[350457658,1737893447519,-500.0,0.00010958,2]
[350457659,1737893447529,-500.0,0.00010958,2]
[350457660,1737893447539,-500.0,0.00010958,2]
[350457661,1737893447548,-500.0,0.00010958,2]
[350457662,1737893447558,-500.0,0.00010958,2]
[350457663,1737893447567,-500.0,0.00010958,2]
[350457664,1737893447578,-500.0,0.00010958,2]
[350457665,1737893447590,-500.0,0.00010958,2]
[350457666,1737893447599,-540.48331934,0.00010958,2]
[350457667,1737893447608,-500.0,0.00010958,2]
[350457668,1737893447619,-201.0,0.00010958,2]
[350457669,1737893447629,-500.0,0.00010958,2]
[350457670,1737893447639,-556.63,0.00010958,2]
[350457671,1737893447649,-139.08875869,0.00010958,2]
[350457672,1737893447675,-370.42487282,0.00010958,2]
[350457673,1737893447686,-500.0,0.00010958,2]
[350457674,1737893447695,-500.0,0.00010958,2]
[350457675,1737893447704,-559.14,0.00010958,2]
[350457676,1737893447714,-500.0,0.00010958,2]
[350457677,1737893447723,-500.0,0.00010958,2]
[350457678,1737893447732,-500.0,0.00010958,2]
[350457679,1737893447742,-500.0,0.00010958,2]
[350457680,1737893447752,-500.0,0.00010958,2]
[350457681,1737893447762,-500.0,0.00010958,2]
[350457682,1737893447772,-500.0,0.00010958,2]
[350457683,1737893447781,-500.0,0.00010958,2]
[350457684,1737893447791,-500.0,0.00010958,2]
[350457685,1737893447801,-500.0,0.00010958,2]
[350457686,1737893447811,-500.0,0.00010958,2]
[350457687,1737893447820,-500.0,0.00010958,2]
[350457688,1737893447830,-500.0,0.00010958,2]
[350457689,1737893447840,-500.0,0.00010958,2]
[350457690,1737893447849,-500.0,0.00010958,2]
[350457691,1737893447859,-247.67,0.00010958,2]
[350457692,1737893447870,-500.0,0.00010958,2]
[350457693,1737893447880,-500.0,0.00010958,2]
[350457694,1737893447889,-500.0,0.00010958,2]
[350457695,1737893447899,-500.0,0.00010958,2]
[350457696,1737893447908,-500.0,0.00010958,2]
[350457697,1737893447919,-500.0,0.00010958,2]
[350457698,1737893447929,-500.0,0.00010958,2]
[350457699,1737893447940,-500.0,0.00010958,2]
[350457700,1737893447950,-500.0,0.00010958,2]
[350457701,1737893447959,-500.0,0.00010958,2]
[350457702,1737893447969,-500.0,0.00010958,2]
[350457703,1737893447980,-341.65007218,0.00010958,2]
[350457704,1737893448007,-158.34992782,0.00010958,2]
[350457705,1737893448016,-500.0,0.00010958,2]
[350457706,1737893448026,-500.0,0.00010958,2]
[350457707,1737893448035,-500.0,0.00010958,2]
[350457708,1737893448044,-500.0,0.00010958,2]
[350457709,1737893448055,-500.0,0.00010958,2]
[350457710,1737893448065,-500.0,0.00010958,2]
[350457711,1737893448076,-260.96763659,0.00010958,2]
[350457712,1737893448086,-406.39530602,0.00010958,2]
[350457720,1737893540621,1053.37423696,0.00022,120]
[350457721,1737893565262,1053.0,0.00022,120]
[350457722,1737893667159,381.83,8.309e-05,2]
[350457724,1737894013521,10000.0,0.00022,120]
[350457727,1737894033445,9551.49,0.00022,120]
[350457749,1737894564297,-1578.03316703,9.828e-05,2]
[350457754,1737894575373,362.73,8.219e-05,2]
[350457763,1737894632426,-3350.36637064,0.0001,2]
[350457764,1737894632435,-251.13,0.00010052,2]
[350457765,1737894632444,-250.0,0.00010062,2]
[350457766,1737894632453,-153.97,0.00010126,2]
[350457767,1737894632462,-1000.0,0.00010164,2]
[350457768,1737894632472,-362.73,0.00010479,2]
[350457769,1737894632481,-300.0,0.00010857,2]
[350457770,1737894632491,-173.37831777,0.00010858,2]
[350457771,1737894632500,-416.94649254,0.00010858,2]
[350457772,1737894632511,-154.62692049,0.00010858,2]
[350457773,1737894632520,-1581.1013506,0.00010858,2]
[350457774,1737894632533,-3709.2063302,0.00010858,2]
[350457775,1737894632542,-7089.8688,0.00010858,2]
[350457776,1737894632553,-4641.927802,0.000109,2]
[350457777,1737894632562,-4653.27729565,0.000109,2]
[350457778,1737894632573,-6011.54691866,0.000109,2]
[350457779,1737894632584,-2100.14277934,0.000109,2]
[350457780,1737894632700,-1596.00416,0.000109,2]
[350457831,1737894638095,-7565.86436303,0.000109,2]
[350457832,1737894638104,-21189.90491496,0.00010913,2]
[350457833,1737894638116,-6222.58352454,0.00010913,2]
[350457834,1737894638125,-16434.31750733,0.00010915,2]
[350457835,1737894638152,-3550.21677885,0.00010915,2]
[350457836,1737894638163,-4495.62569117,0.00010915,2]
[350457837,1737894638175,-494.50385388,0.00010915,2]
[350457838,1737894638212,-2437.82460827,0.00010915,2]
[350457839,1737894638221,-4477.63097124,0.00010915,2]
[350457840,1737894638230,-4477.63097124,0.00010916,2]
[350457841,1737894638240,-659.13610715,0.00010919,2]
[350457842,1737894638250,-2009.05388903,0.0001092,2]
[350457843,1737894638259,-4477.63097124,0.00010921,2]
[350457844,1737894638269,-299.67975396,0.00010927,2]
[350457845,1737894638279,-2009.05388903,0.00010927,2]
[350457846,1737894638288,-2009.05388903,0.00010927,2]
[350457847,1737894638298,-659.13610715,0.00010934,2]
[350457848,1737894638307,-200.0,0.00010935,2]
[350457849,1737894638317,-299.67975396,0.00010938,2]
[350457850,1737894638327,-299.67975396,0.00010938,2]
[350457851,1737894638336,-1493.86636285,0.0001094,2]
[350457852,1737894638348,-459.02756754,0.0001094,2]
[350457853,1737894638358,-291.15141235,0.00010941,2]
[350457854,1737894638370,-1661.74251804,0.00010941,2]
[350457855,1737894638379,-1952.89393039,0.00010944,2]
[350457856,1737894638388,-323.011,0.00010947,2]
[350457857,1737894638398,-150.0,0.00010947,2]
[350457858,1737894638408,-567.0,0.00010947,2]
[350457859,1737894638418,-637.0,0.00010947,2]
[350457860,1737894638428,-1865.0,0.00010947,2]
[350457861,1737894638438,-1262.0,0.00010947,2]
[350457862,1737894638447,-782.0,0.00010947,2]
[350457863,1737894638457,-907.0,0.00010947,2]
[350457864,1737894638467,-2950.0,0.00010947,2]
[350457865,1737894638478,-3987.0,0.00010947,2]
[350457866,1737894638488,-538.0,0.00010947,2]
[350457867,1737894638498,-150.0,0.00010947,2]
[350457868,1737894638507,-638.0,0.00010947,2]
[350457869,1737894638517,-2020.0,0.00010947,2]
[350457870,1737894638526,-150.0,0.00010947,2]
[350457871,1737894638536,-3905.0,0.00010947,2]
[350457872,1737894638545,-1270.0,0.00010947,2]
[350457873,1737894638555,-299.67975396,0.0001095,2]
[350457874,1737894638565,-2214.47783057,0.00010953,2]
[350457875,1737894638575,-31991.741301,0.00010954,2]
[350457876,1737894638584,-2214.47783057,0.00010955,2]
[350457877,1737894638594,-193.93158299,0.00010957,2]
[350457878,1737894638604,-27085.50503498,0.00010957,2]
[350457879,1737894638616,-500.73600583,0.00010957,2]
[350457880,1737894638627,-1855.68172605,0.00010957,2]
[350457885,1737894640314,-2480.74477818,0.00010957,2]
[350457886,1737894640372,-867.51146052,0.00010957,2]
[350457887,1737894640385,-941.68,0.00010957,2]
[350457888,1737894640396,-544.05459812,0.00010957,2]
[350457889,1737894640437,-54191.60491056,0.00010957,2]
[350457890,1737894640448,-649.84901329,0.00010957,2]
[350457891,1737894640459,-544.34473846,0.00010957,2]
[350457892,1737894640498,-13253.22423378,0.00010957,2]
[350457893,1737894640512,-3073.13814854,0.00010957,2]
[350457894,1737894640524,-753.69950238,0.00010957,2]
[350457946,1737894643317,-2239.82826886,0.00010957,2]
[350457957,1737894646446,-1040.297,0.00010947,2]
[350457958,1737894646456,-94311.33619925,0.00010957,2]
[350457959,1737894646465,-500.0,0.00010957,2]
[350457960,1737894646474,-542.02,0.00010958,2]
[350457961,1737894646483,-248.41018001,0.00010958,2]
[350457962,1737894646492,-535.74705755,0.00010958,2]
[350457963,1737894646501,-500.0,0.00010958,2]
[350457964,1737894646510,-500.0,0.00010958,2]
[350457965,1737894646520,-426.34939439,0.00010958,2]
[350457966,1737894646529,-500.0,0.00010958,2]
[350457967,1737894646538,-500.0,0.00010958,2]
[350457968,1737894646548,-500.0,0.00010958,2]
[350457969,1737894646558,-500.0,0.00010958,2]
[350457970,1737894646567,-252.22174423,0.00010958,2]
[350457971,1737894646577,-500.0,0.00010958,2]
[350457972,1737894646586,-599.57569607,0.00010958,2]
[350457974,1737894646595,-500.0,0.00010958,2]
[350457975,1737894646604,-500.0,0.00010958,2]
[350457976,1737894646613,-500.0,0.00010958,2]
[350457977,1737894646622,-500.0,0.00010958,2]
[350457978,1737894646632,-500.0,0.00010958,2]
[350457979,1737894646640,-500.0,0.00010958,2]
[350457980,1737894646650,-500.0,0.00010958,2]
[350457981,1737894646659,-500.0,0.00010958,2]
[350457982,1737894646667,-500.0,0.00010958,2]
[350457983,1737894646676,-500.0,0.00010958,2]
[350457984,1737894646685,-500.0,0.00010958,2]
[350457985,1737894646694,-500.0,0.00010958,2]
[350457986,1737894646703,-500.0,0.00010958,2]
[350457987,1737894646712,-500.0,0.00010958,2]
[350457988,1737894646720,-500.0,0.00010958,2]
[350457989,1737894646729,-500.0,0.00010958,2]
[350457990,1737894646738,-372.66160434,0.00010958,2]
[350457991,1737894646747,-500.0,0.00010958,2]
[350457992,1737894646757,-500.0,0.00010958,2]
[350457993,1737894646766,-500.0,0.00010958,2]
[350457994,1737894646775,-500.0,0.00010958,2]
[350457995,1737894646784,-500.0,0.00010958,2]
[350457996,1737894646794,-500.0,0.00010958,2]
[350457997,1737894646803,-500.0,0.00010958,2]
[350457998,1737894646812,-393.40558644,0.00010958,2]
[350457999,1737894646821,-500.0,0.00010958,2]
[350458000,1737894646830,-500.0,0.00010958,2]
[350458001,1737894646840,-500.0,0.00010958,2]
[350458002,1737894646850,-356.7040842,0.00010958,2]
[350458003,1737894646859,-500.0,0.00010958,2]
[350458004,1737894646869,-500.0,0.00010958,2]
[350458005,1737894646878,-500.0,0.00010958,2]
[350458006,1737894646887,-500.0,0.00010958,2]
[350458007,1737894646896,-162.34,0.00010958,2]
[350458008,1737894646905,-500.0,0.00010958,2]
[350458009,1737894646917,-500.0,0.00010958,2]
[350458010,1737894646926,-500.0,0.00010958,2]
[350458011,1737894646935,-507.13482335,0.00010958,2]
[350458012,1737894646944,-500.0,0.00010958,2]
[350458013,1737894646953,-303.08035844,0.00010958,2]
[350458014,1737894646963,-510.94441253,0.00010958,2]
[350458015,1737894646971,-500.0,0.00010958,2]
[350458016,1737894646981,-414.63,0.00010958,2]
[350458017,1737894646990,-206.5737644,0.00010958,2]
[350458018,1737894646999,-500.0,0.00010958,2]
[350458019,1737894647008,-514.44,0.00010958,2]
[350458020,1737894647017,-500.0,0.00010958,2]
[350458021,1737894647026,-500.0,0.00010958,2]
[350458022,1737894647036,-500.0,0.00010958,2]
[350458023,1737894647045,-500.0,0.00010958,2]
[350458024,1737894647055,-500.0,0.00010958,2]
[350458025,1737894647064,-500.0,0.00010958,2]
[350458026,1737894647074,-500.0,0.00010958,2]
[350458027,1737894647083,-500.0,0.00010958,2]
[350458028,1737894647092,-500.0,0.00010958,2]
[350458029,1737894647104,-606.55512185,0.00010958,2]